Workbook

Sheet ינואר
A1: ינואר
A2: מכירות באינטרנט | C2: מזהה מכירה | D2: תיאור פריט | E2: מחיר רכישה | F2: מחיר מכירה | G2: עמלת אינטרנט | H2: עמלות PayPal | I2: עמלות כרטיס אשראי | J2: עלויות משלוח | K2: עלויות משלוח2 | L2: רווח/הפסד על מכירה | M2: רווח/הפסד על משלוח | N2: סה"כ רווח/הפסד
A3: שנה | C3: TS001 | D3: פריט 1 | E3: ₪ 5.00 | F3: ₪ 4.00 | G3: ₪ 2.00 | H3: ₪ 1.50 | I3: ₪ 0.00 | J3: ₪ 4.00 | K3: ₪ 2.00 | L3: =IFERROR(JanuarySales[מחיר מכירה]-(JanuarySales[מחיר רכישה]+JanuarySales[עמלת אינטרנט]+JanuarySales[עמלות PayPal]+JanuarySales[עמלות כרטיס אשראי]),"") -> (₪ 4.50) | M3: =JanuarySales[עלויות משלוח]-JanuarySales[עלויות משלוח2] -> ₪ 2.00 | N3: =JanuarySales[רווח/הפסד על מכירה]+JanuarySales[רווח/הפסד על משלוח] -> (₪ 2.50)
A4: 2012 | C4: TP004 | D4: פריט 2 | E4: ₪ 2.00 | F4: ₪ 30.00 | G4: ₪ 0.50 | H4: ₪ 0.50 | J4: ₪ 4.00 | K4: ₪ 5.50 | L4: =IFERROR(JanuarySales[מחיר מכירה]-(JanuarySales[מחיר רכישה]+JanuarySales[עמלת אינטרנט]+JanuarySales[עמלות PayPal]+JanuarySales[עמלות כרטיס אשראי]),"") -> ₪ 27.00 | M4: =JanuarySales[עלויות משלוח]-JanuarySales[עלויות משלוח2] -> (₪ 1.50) | N4: =JanuarySales[רווח/הפסד על מכירה]+JanuarySales[רווח/הפסד על משלוח] -> ₪ 25.50
C5: RS99 | D5: פריט 3 | E5: ₪ 17.00 | F5: ₪ 23.00 | G5: ₪ 2.00 | I5: ₪ 2.00 | J5: ₪ 3.00 | K5: ₪ 2.00 | L5: =IFERROR(JanuarySales[מחיר מכירה]-(JanuarySales[מחיר רכישה]+JanuarySales[עמלת אינטרנט]+JanuarySales[עמלות PayPal]+JanuarySales[עמלות כרטיס אשראי]),"") -> ₪ 2.00 | M5: =JanuarySales[עלויות משלוח]-JanuarySales[עלויות משלוח2] -> ₪ 1.00 | N5: =JanuarySales[רווח/הפסד על מכירה]+JanuarySales[רווח/הפסד על משלוח] -> ₪ 3.00
A6: סה"כ רווח/הפסד | C6: ST001 | D6: פריט 4 | E6: ₪ 120.00 | F6: ₪ 180.00 | G6: ₪ 2.00 | H6: ₪ 1.50 | J6: ₪ 3.00 | K6: ₪ 2.00 | L6: =IFERROR(JanuarySales[מחיר מכירה]-(JanuarySales[מחיר רכישה]+JanuarySales[עמלת אינטרנט]+JanuarySales[עמלות PayPal]+JanuarySales[עמלות כרטיס אשראי]),"") -> ₪ 56.50 | M6: =JanuarySales[עלויות משלוח]-JanuarySales[עלויות משלוח2] -> ₪ 1.00 | N6: =JanuarySales[רווח/הפסד על מכירה]+JanuarySales[רווח/הפסד על משלוח] -> ₪ 57.50
A7: =JanuarySales[[#Totals],[סה"כ רווח/הפסד]] -> ₪89.00 | C7: ST001 | D7: פריט 5 | E7: ₪ 10.00 | F7: ₪ 12.00 | G7: ₪ 2.00 | H7: ₪ 1.50 | J7: ₪ 14.00 | K7: ₪ 7.00 | L7: =IFERROR(JanuarySales[מחיר מכירה]-(JanuarySales[מחיר רכישה]+JanuarySales[עמלת אינטרנט]+JanuarySales[עמלות PayPal]+JanuarySales[עמלות כרטיס אשראי]),"") -> (₪ 1.50) | M7: =JanuarySales[עלויות משלוח]-JanuarySales[עלויות משלוח2] -> ₪ 7.00 | N7: =JanuarySales[רווח/הפסד על מכירה]+JanuarySales[רווח/הפסד על משלוח] -> ₪ 5.50
C8: סה"כ | D8: =" נמכרו: "&SUBTOTAL(103,JanuarySales[תיאור פריט]) -> נמכרו: 5 | E8: =SUBTOTAL(109,JanuarySales[מחיר רכישה]) -> ₪ 154.00 | F8: =SUBTOTAL(109,JanuarySales[מחיר מכירה]) -> ₪ 249.00 | G8: =SUBTOTAL(109,JanuarySales[עמלת אינטרנט]) -> ₪ 8.50 | H8: =SUBTOTAL(109,JanuarySales[עמלות PayPal]) -> ₪ 5.00 | I8: =SUBTOTAL(109,JanuarySales[עמלות כרטיס אשראי]) -> ₪ 2.00 | J8: =SUBTOTAL(109,JanuarySales[עלויות משלוח]) -> ₪ 28.00 | K8: =SUBTOTAL(109,JanuarySales[עלויות משלוח2]) -> ₪ 18.50 | L8: =SUBTOTAL(109,JanuarySales[רווח/הפסד על מכירה]) -> ₪ 79.50 | M8: =SUBTOTAL(109,JanuarySales[רווח/הפסד על משלוח]) -> ₪ 9.50 | N8: =SUBTOTAL(109,JanuarySales[סה"כ רווח/הפסד]) -> ₪ 89.00
A9: מגמת רווח/הפסד

Sheet פברואר
A1: פברואר
A2: מכירות באינטרנט | C2: מזהה מכירה | D2: תיאור פריט | E2: מחיר רכישה | F2: מחיר מכירה | G2: עמלת אינטרנט | H2: עמלות PayPal | I2: עמלות כרטיס אשראי | J2: עלויות משלוח | K2: עלויות משלוח2 | L2: רווח/הפסד על מכירה | M2: רווח/הפסד על משלוח | N2: סה"כ רווח/הפסד
A3: שנה | C3: TS020 | D3: פריט 1 | E3: ₪ 10.00 | F3: ₪ 175.00 | G3: ₪ 3.00 | H3: ₪ 1.50 | I3: ₪ 0.00 | J3: ₪ 7.00 | K3: ₪ 5.00 | L3: =IFERROR(FebruarySales[מחיר מכירה]-(FebruarySales[מחיר רכישה]+FebruarySales[עמלת אינטרנט]+FebruarySales[עמלות PayPal]+FebruarySales[עמלות כרטיס אשראי]),"") -> ₪ 160.50 | M3: =FebruarySales[עלויות משלוח]-FebruarySales[עלויות משלוח2] -> ₪ 2.00 | N3: =FebruarySales[רווח/הפסד על מכירה]+FebruarySales[רווח/הפסד על משלוח] -> ₪ 162.50
A4: =SalesYear -> 2012 | C4: TS021 | D4: פריט 2 | E4: ₪ 32.00 | F4: ₪ 100.00 | G4: ₪ 3.00 | I4: ₪ 3.20 | J4: ₪ 20.00 | K4: ₪ 13.00 | L4: =IFERROR(FebruarySales[מחיר מכירה]-(FebruarySales[מחיר רכישה]+FebruarySales[עמלת אינטרנט]+FebruarySales[עמלות PayPal]+FebruarySales[עמלות כרטיס אשראי]),"") -> ₪ 61.80 | M4: =FebruarySales[עלויות משלוח]-FebruarySales[עלויות משלוח2] -> ₪ 7.00 | N4: =FebruarySales[רווח/הפסד על מכירה]+FebruarySales[רווח/הפסד על משלוח] -> ₪ 68.80
C5: TS022 | D5: פריט 3 | E5: ₪ 3.00 | F5: ₪ 7.00 | G5: ₪ 2.00 | I5: ₪ 2.00 | J5: ₪ 0.50 | K5: ₪ 1.20 | L5: =IFERROR(FebruarySales[מחיר מכירה]-(FebruarySales[מחיר רכישה]+FebruarySales[עמלת אינטרנט]+FebruarySales[עמלות PayPal]+FebruarySales[עמלות כרטיס אשראי]),"") -> ₪ 0.00 | M5: =FebruarySales[עלויות משלוח]-FebruarySales[עלויות משלוח2] -> (₪ 0.70) | N5: =FebruarySales[רווח/הפסד על מכירה]+FebruarySales[רווח/הפסד על משלוח] -> (₪ 0.70)
A6: סה"כ רווח/הפסד | C6: TS023 | D6: פריט 4 | E6: ₪ 22.00 | F6: ₪ 18.00 | G6: ₪ 3.00 | H6: ₪ 1.50 | J6: ₪ 7.00 | K6: ₪ 10.00 | L6: =IFERROR(FebruarySales[מחיר מכירה]-(FebruarySales[מחיר רכישה]+FebruarySales[עמלת אינטרנט]+FebruarySales[עמלות PayPal]+FebruarySales[עמלות כרטיס אשראי]),"") -> (₪ 8.50) | M6: =FebruarySales[עלויות משלוח]-FebruarySales[עלויות משלוח2] -> (₪ 3.00) | N6: =FebruarySales[רווח/הפסד על מכירה]+FebruarySales[רווח/הפסד על משלוח] -> (₪ 11.50)
A7: =FebruarySales[[#Totals],[סה"כ רווח/הפסד]] -> ₪224.60 | C7: TS024 | D7: פריט 5 | E7: ₪ 10.00 | F7: ₪ 12.00 | G7: ₪ 2.00 | H7: ₪ 1.50 | J7: ₪ 14.00 | K7: ₪ 7.00 | L7: =IFERROR(FebruarySales[מחיר מכירה]-(FebruarySales[מחיר רכישה]+FebruarySales[עמלת אינטרנט]+FebruarySales[עמלות PayPal]+FebruarySales[עמלות כרטיס אשראי]),"") -> (₪ 1.50) | M7: =FebruarySales[עלויות משלוח]-FebruarySales[עלויות משלוח2] -> ₪ 7.00 | N7: =FebruarySales[רווח/הפסד על מכירה]+FebruarySales[רווח/הפסד על משלוח] -> ₪ 5.50
C8: סה"כ | D8: ="נמכרו: "&SUBTOTAL(103,FebruarySales[תיאור פריט]) -> נמכרו: 5 | E8: =SUBTOTAL(109,FebruarySales[מחיר רכישה]) -> ₪ 77.00 | F8: =SUBTOTAL(109,FebruarySales[מחיר מכירה]) -> ₪ 312.00 | G8: =SUBTOTAL(109,FebruarySales[עמלת אינטרנט]) -> ₪ 13.00 | H8: =SUBTOTAL(109,FebruarySales[עמלות PayPal]) -> ₪ 4.50 | I8: =SUBTOTAL(109,FebruarySales[עמלות כרטיס אשראי]) -> ₪ 5.20 | J8: =SUBTOTAL(109,FebruarySales[עלויות משלוח]) -> ₪ 48.50 | K8: =SUBTOTAL(109,FebruarySales[עלויות משלוח2]) -> ₪ 36.20 | L8: =SUBTOTAL(109,FebruarySales[רווח/הפסד על מכירה]) -> ₪ 212.30 | M8: =SUBTOTAL(109,FebruarySales[רווח/הפסד על משלוח]) -> ₪ 12.30 | N8: =SUBTOTAL(109,FebruarySales[סה"כ רווח/הפסד]) -> ₪ 224.60
A9: מגמת רווח/הפסד

Sheet מרץ
A1: מרץ
A2: מכירות באינטרנט | C2: מזהה מכירה | D2: תיאור פריט | E2: מחיר רכישה | F2: מחיר מכירה | G2: עמלת אינטרנט | H2: עמלות PayPal | I2: עמלות כרטיס אשראי | J2: עלויות משלוח | K2: עלויות משלוח2 | L2: רווח/הפסד על מכירה | M2: רווח/הפסד על משלוח | N2: סה"כ רווח/הפסד
A3: שנה | L3: =IFERROR(MarchSales[מחיר מכירה]-(MarchSales[מחיר רכישה]+MarchSales[עמלת אינטרנט]+MarchSales[עמלות PayPal]+MarchSales[עמלות כרטיס אשראי]),"") -> ₪ 0.00 | M3: =MarchSales[עלויות משלוח]-MarchSales[עלויות משלוח2] -> ₪ 0.00 | N3: =MarchSales[רווח/הפסד על מכירה]+MarchSales[רווח/הפסד על משלוח] -> ₪ 0.00
A4: =SalesYear -> 2012 | L4: =IFERROR(MarchSales[מחיר מכירה]-(MarchSales[מחיר רכישה]+MarchSales[עמלת אינטרנט]+MarchSales[עמלות PayPal]+MarchSales[עמלות כרטיס אשראי]),"") -> ₪ 0.00 | M4: =MarchSales[עלויות משלוח]-MarchSales[עלויות משלוח2] -> ₪ 0.00 | N4: =MarchSales[רווח/הפסד על מכירה]+MarchSales[רווח/הפסד על משלוח] -> ₪ 0.00
L5: =IFERROR(MarchSales[מחיר מכירה]-(MarchSales[מחיר רכישה]+MarchSales[עמלת אינטרנט]+MarchSales[עמלות PayPal]+MarchSales[עמלות כרטיס אשראי]),"") -> ₪ 0.00 | M5: =MarchSales[עלויות משלוח]-MarchSales[עלויות משלוח2] -> ₪ 0.00 | N5: =MarchSales[רווח/הפסד על מכירה]+MarchSales[רווח/הפסד על משלוח] -> ₪ 0.00
A6: סה"כ רווח/הפסד | L6: =IFERROR(MarchSales[מחיר מכירה]-(MarchSales[מחיר רכישה]+MarchSales[עמלת אינטרנט]+MarchSales[עמלות PayPal]+MarchSales[עמלות כרטיס אשראי]),"") -> ₪ 0.00 | M6: =MarchSales[עלויות משלוח]-MarchSales[עלויות משלוח2] -> ₪ 0.00 | N6: =MarchSales[רווח/הפסד על מכירה]+MarchSales[רווח/הפסד על משלוח] -> ₪ 0.00
A7: =MarchSales[[#Totals],[סה"כ רווח/הפסד]] -> ₪0.00 | L7: =IFERROR(MarchSales[מחיר מכירה]-(MarchSales[מחיר רכישה]+MarchSales[עמלת אינטרנט]+MarchSales[עמלות PayPal]+MarchSales[עמלות כרטיס אשראי]),"") -> ₪ 0.00 | M7: =MarchSales[עלויות משלוח]-MarchSales[עלויות משלוח2] -> ₪ 0.00 | N7: =MarchSales[רווח/הפסד על מכירה]+MarchSales[רווח/הפסד על משלוח] -> ₪ 0.00
C8: סה"כ | D8: ="נמכרו: "&SUBTOTAL(103,MarchSales[תיאור פריט]) -> נמכרו: 0 | E8: =SUBTOTAL(109,MarchSales[מחיר רכישה]) -> ₪ 0.00 | F8: =SUBTOTAL(109,MarchSales[מחיר מכירה]) -> ₪ 0.00 | G8: =SUBTOTAL(109,MarchSales[עמלת אינטרנט]) -> ₪ 0.00 | H8: =SUBTOTAL(109,MarchSales[עמלות PayPal]) -> ₪ 0.00 | I8: =SUBTOTAL(109,MarchSales[עמלות כרטיס אשראי]) -> ₪ 0.00 | J8: =SUBTOTAL(109,MarchSales[עלויות משלוח]) -> ₪ 0.00 | K8: =SUBTOTAL(109,MarchSales[עלויות משלוח2]) -> ₪ 0.00 | L8: =SUBTOTAL(109,MarchSales[רווח/הפסד על מכירה]) -> ₪ 0.00 | M8: =SUBTOTAL(109,MarchSales[רווח/הפסד על משלוח]) -> ₪ 0.00 | N8: =SUBTOTAL(109,MarchSales[סה"כ רווח/הפסד]) -> ₪ 0.00
A9: מגמת רווח/הפסד

Sheet אפריל
A1: אפריל
A2: מכירות באינטרנט | C2: מזהה מכירה | D2: תיאור פריט | E2: מחיר רכישה | F2: מחיר מכירה | G2: עמלת אינטרנט | H2: עמלות PayPal | I2: עמלות כרטיס אשראי | J2: עלויות משלוח | K2: עלויות משלוח2 | L2: רווח/הפסד על מכירה | M2: רווח/הפסד על משלוח | N2: סה"כ רווח/הפסד
A3: שנה | M3: =AprilSales[עלויות משלוח]-AprilSales[עלויות משלוח2] -> ₪ 0.00 | N3: =AprilSales[רווח/הפסד על מכירה]+AprilSales[רווח/הפסד על משלוח] -> ₪ 0.00
A4: =SalesYear -> 2012 | M4: =AprilSales[עלויות משלוח]-AprilSales[עלויות משלוח2] -> ₪ 0.00 | N4: =AprilSales[רווח/הפסד על מכירה]+AprilSales[רווח/הפסד על משלוח] -> ₪ 0.00
M5: =AprilSales[עלויות משלוח]-AprilSales[עלויות משלוח2] -> ₪ 0.00 | N5: =AprilSales[רווח/הפסד על מכירה]+AprilSales[רווח/הפסד על משלוח] -> ₪ 0.00
A6: סה"כ רווח/הפסד | M6: =AprilSales[עלויות משלוח]-AprilSales[עלויות משלוח2] -> ₪ 0.00 | N6: =AprilSales[רווח/הפסד על מכירה]+AprilSales[רווח/הפסד על משלוח] -> ₪ 0.00
A7: =AprilSales[[#Totals],[סה"כ רווח/הפסד]] -> ₪0.00 | M7: =AprilSales[עלויות משלוח]-AprilSales[עלויות משלוח2] -> ₪ 0.00 | N7: =AprilSales[רווח/הפסד על מכירה]+AprilSales[רווח/הפסד על משלוח] -> ₪ 0.00
C8: סה"כ | D8: ="נמכרו: "&SUBTOTAL(103,MarchSales[תיאור פריט]) -> נמכרו: 0 | E8: =SUBTOTAL(109,MarchSales[מחיר רכישה]) -> ₪ 0.00 | F8: =SUBTOTAL(109,MarchSales[מחיר מכירה]) -> ₪ 0.00 | G8: =SUBTOTAL(109,MarchSales[עמלת אינטרנט]) -> ₪ 0.00 | H8: =SUBTOTAL(109,MarchSales[עמלות PayPal]) -> ₪ 0.00 | I8: =SUBTOTAL(109,MarchSales[עמלות כרטיס אשראי]) -> ₪ 0.00 | J8: =SUBTOTAL(109,MarchSales[עלויות משלוח]) -> ₪ 0.00 | K8: =SUBTOTAL(109,MarchSales[עלויות משלוח2]) -> ₪ 0.00 | L8: =SUBTOTAL(109,MarchSales[רווח/הפסד על מכירה]) -> ₪ 0.00 | M8: =SUBTOTAL(109,MarchSales[רווח/הפסד על משלוח]) -> ₪ 0.00 | N8: =SUBTOTAL(109,MarchSales[סה"כ רווח/הפסד]) -> ₪ 0.00
A9: מגמת רווח/הפסד

Sheet מאי
A1: מאי
A2: מכירות באינטרנט | C2: מזהה מכירה | D2: תיאור פריט | E2: מחיר רכישה | F2: מחיר מכירה | G2: עמלת אינטרנט | H2: עמלות PayPal | I2: עמלות כרטיס אשראי | J2: עלויות משלוח | K2: עלויות משלוח2 | L2: רווח/הפסד על מכירה | M2: רווח/הפסד על משלוח | N2: סה"כ רווח/הפסד
A3: שנה | M3: =MaySales[עלויות משלוח]-MaySales[עלויות משלוח2] -> ₪ 0.00 | N3: =MaySales[רווח/הפסד על מכירה]+MaySales[רווח/הפסד על משלוח] -> ₪ 0.00
A4: =SalesYear -> 2012 | M4: =MaySales[עלויות משלוח]-MaySales[עלויות משלוח2] -> ₪ 0.00 | N4: =MaySales[רווח/הפסד על מכירה]+MaySales[רווח/הפסד על משלוח] -> ₪ 0.00
M5: =MaySales[עלויות משלוח]-MaySales[עלויות משלוח2] -> ₪ 0.00 | N5: =MaySales[רווח/הפסד על מכירה]+MaySales[רווח/הפסד על משלוח] -> ₪ 0.00
A6: סה"כ רווח/הפסד | M6: =MaySales[עלויות משלוח]-MaySales[עלויות משלוח2] -> ₪ 0.00 | N6: =MaySales[רווח/הפסד על מכירה]+MaySales[רווח/הפסד על משלוח] -> ₪ 0.00
A7: =MaySales[[#Totals],[סה"כ רווח/הפסד]] -> ₪0.00 | M7: =MaySales[עלויות משלוח]-MaySales[עלויות משלוח2] -> ₪ 0.00 | N7: =MaySales[רווח/הפסד על מכירה]+MaySales[רווח/הפסד על משלוח] -> ₪ 0.00
C8: סה"כ | D8: ="נמכרו: "&SUBTOTAL(103,MaySales[תיאור פריט]) -> נמכרו: 0 | E8: =SUBTOTAL(109,MaySales[מחיר רכישה]) -> ₪ 0.00 | F8: =SUBTOTAL(109,MaySales[מחיר מכירה]) -> ₪ 0.00 | G8: =SUBTOTAL(109,MaySales[עמלת אינטרנט]) -> ₪ 0.00 | H8: =SUBTOTAL(109,MaySales[עמלות PayPal]) -> ₪ 0.00 | I8: =SUBTOTAL(109,MaySales[עמלות כרטיס אשראי]) -> ₪ 0.00 | J8: =SUBTOTAL(109,MaySales[עלויות משלוח]) -> ₪ 0.00 | K8: =SUBTOTAL(109,MaySales[עלויות משלוח2]) -> ₪ 0.00 | L8: =SUBTOTAL(109,MaySales[רווח/הפסד על מכירה]) -> ₪ 0.00 | M8: =SUBTOTAL(109,MaySales[רווח/הפסד על משלוח]) -> ₪ 0.00 | N8: =SUBTOTAL(109,MaySales[סה"כ רווח/הפסד]) -> ₪ 0.00
A9: מגמת רווח/הפסד

Sheet יוני
A1: יוני
A2: מכירות באינטרנט | C2: מזהה מכירה | D2: תיאור פריט | E2: מחיר רכישה | F2: מחיר מכירה | G2: עמלת אינטרנט | H2: עמלות PayPal | I2: עמלות כרטיס אשראי | J2: עלויות משלוח | K2: עלויות משלוח2 | L2: רווח/הפסד על מכירה | M2: רווח/הפסד על משלוח | N2: סה"כ רווח/הפסד
A3: שנה | M3: =JuneSales[עלויות משלוח]-JuneSales[עלויות משלוח2] -> ₪ 0.00 | N3: =JuneSales[רווח/הפסד על מכירה]+JuneSales[רווח/הפסד על משלוח] -> ₪ 0.00
A4: =SalesYear -> 2012 | M4: =JuneSales[עלויות משלוח]-JuneSales[עלויות משלוח2] -> ₪ 0.00 | N4: =JuneSales[רווח/הפסד על מכירה]+JuneSales[רווח/הפסד על משלוח] -> ₪ 0.00
M5: =JuneSales[עלויות משלוח]-JuneSales[עלויות משלוח2] -> ₪ 0.00 | N5: =JuneSales[רווח/הפסד על מכירה]+JuneSales[רווח/הפסד על משלוח] -> ₪ 0.00
A6: סה"כ רווח/הפסד | M6: =JuneSales[עלויות משלוח]-JuneSales[עלויות משלוח2] -> ₪ 0.00 | N6: =JuneSales[רווח/הפסד על מכירה]+JuneSales[רווח/הפסד על משלוח] -> ₪ 0.00
A7: =JuneSales[[#Totals],[סה"כ רווח/הפסד]] -> ₪0.00 | M7: =JuneSales[עלויות משלוח]-JuneSales[עלויות משלוח2] -> ₪ 0.00 | N7: =JuneSales[רווח/הפסד על מכירה]+JuneSales[רווח/הפסד על משלוח] -> ₪ 0.00
C8: סה"כ | D8: ="נמכרו: "&SUBTOTAL(103,JuneSales[תיאור פריט]) -> נמכרו: 0 | E8: =SUBTOTAL(109,JuneSales[מחיר רכישה]) -> ₪ 0.00 | F8: =SUBTOTAL(109,JuneSales[מחיר מכירה]) -> ₪ 0.00 | G8: =SUBTOTAL(109,JuneSales[עמלת אינטרנט]) -> ₪ 0.00 | H8: =SUBTOTAL(109,JuneSales[עמלות PayPal]) -> ₪ 0.00 | I8: =SUBTOTAL(109,JuneSales[עמלות כרטיס אשראי]) -> ₪ 0.00 | J8: =SUBTOTAL(109,JuneSales[עלויות משלוח]) -> ₪ 0.00 | K8: =SUBTOTAL(109,JuneSales[עלויות משלוח2]) -> ₪ 0.00 | L8: =SUBTOTAL(109,JuneSales[רווח/הפסד על מכירה]) -> ₪ 0.00 | M8: =SUBTOTAL(109,JuneSales[רווח/הפסד על משלוח]) -> ₪ 0.00 | N8: =SUBTOTAL(109,JuneSales[סה"כ רווח/הפסד]) -> ₪ 0.00
A9: מגמת רווח/הפסד

Sheet יולי
A1: יולי
A2: מכירות באינטרנט | C2: מזהה מכירה | D2: תיאור פריט | E2: מחיר רכישה | F2: מחיר מכירה | G2: עמלת אינטרנט | H2: עמלות PayPal | I2: עמלות כרטיס אשראי | J2: עלויות משלוח | K2: עלויות משלוח2 | L2: רווח/הפסד על מכירה | M2: רווח/הפסד על משלוח | N2: סה"כ רווח/הפסד
A3: שנה | M3: =JulySales[עלויות משלוח]-JulySales[עלויות משלוח2] -> ₪ 0.00 | N3: =JulySales[רווח/הפסד על מכירה]+JulySales[רווח/הפסד על משלוח] -> ₪ 0.00
A4: =SalesYear -> 2012 | M4: =JulySales[עלויות משלוח]-JulySales[עלויות משלוח2] -> ₪ 0.00 | N4: =JulySales[רווח/הפסד על מכירה]+JulySales[רווח/הפסד על משלוח] -> ₪ 0.00
M5: =JulySales[עלויות משלוח]-JulySales[עלויות משלוח2] -> ₪ 0.00 | N5: =JulySales[רווח/הפסד על מכירה]+JulySales[רווח/הפסד על משלוח] -> ₪ 0.00
A6: סה"כ רווח/הפסד | M6: =JulySales[עלויות משלוח]-JulySales[עלויות משלוח2] -> ₪ 0.00 | N6: =JulySales[רווח/הפסד על מכירה]+JulySales[רווח/הפסד על משלוח] -> ₪ 0.00
A7: =JulySales[[#Totals],[סה"כ רווח/הפסד]] -> ₪0.00 | M7: =JulySales[עלויות משלוח]-JulySales[עלויות משלוח2] -> ₪ 0.00 | N7: =JulySales[רווח/הפסד על מכירה]+JulySales[רווח/הפסד על משלוח] -> ₪ 0.00
C8: סה"כ | D8: ="נמכרו: "&SUBTOTAL(103,JulySales[תיאור פריט]) -> נמכרו: 0 | E8: =SUBTOTAL(109,JulySales[מחיר רכישה]) -> ₪ 0.00 | F8: =SUBTOTAL(109,JulySales[מחיר מכירה]) -> ₪ 0.00 | G8: =SUBTOTAL(109,JulySales[עמלת אינטרנט]) -> ₪ 0.00 | H8: =SUBTOTAL(109,JulySales[עמלות PayPal]) -> ₪ 0.00 | I8: =SUBTOTAL(109,JulySales[עמלות כרטיס אשראי]) -> ₪ 0.00 | J8: =SUBTOTAL(109,JulySales[עלויות משלוח]) -> ₪ 0.00 | K8: =SUBTOTAL(109,JulySales[עלויות משלוח2]) -> ₪ 0.00 | L8: =SUBTOTAL(109,JulySales[רווח/הפסד על מכירה]) -> ₪ 0.00 | M8: =SUBTOTAL(109,JulySales[רווח/הפסד על משלוח]) -> ₪ 0.00 | N8: =SUBTOTAL(109,JulySales[סה"כ רווח/הפסד]) -> ₪ 0.00
A9: מגמת רווח/הפסד

Sheet אוגוסט
A1: אוגוסט
A2: מכירות באינטרנט | C2: מזהה מכירה | D2: תיאור פריט | E2: מחיר רכישה | F2: מחיר מכירה | G2: עמלת אינטרנט | H2: עמלות PayPal | I2: עמלות כרטיס אשראי | J2: עלויות משלוח | K2: עלויות משלוח2 | L2: רווח/הפסד על מכירה | M2: רווח/הפסד על משלוח | N2: סה"כ רווח/הפסד
A3: שנה | M3: =AugustSales[עלויות משלוח]-AugustSales[עלויות משלוח2] -> ₪ 0.00 | N3: =AugustSales[רווח/הפסד על מכירה]+AugustSales[רווח/הפסד על משלוח] -> ₪ 0.00
A4: =SalesYear -> 2012 | M4: =AugustSales[עלויות משלוח]-AugustSales[עלויות משלוח2] -> ₪ 0.00 | N4: =AugustSales[רווח/הפסד על מכירה]+AugustSales[רווח/הפסד על משלוח] -> ₪ 0.00
M5: =AugustSales[עלויות משלוח]-AugustSales[עלויות משלוח2] -> ₪ 0.00 | N5: =AugustSales[רווח/הפסד על מכירה]+AugustSales[רווח/הפסד על משלוח] -> ₪ 0.00
A6: סה"כ רווח/הפסד | M6: =AugustSales[עלויות משלוח]-AugustSales[עלויות משלוח2] -> ₪ 0.00 | N6: =AugustSales[רווח/הפסד על מכירה]+AugustSales[רווח/הפסד על משלוח] -> ₪ 0.00
A7: =AugustSales[[#Totals],[סה"כ רווח/הפסד]] -> ₪0.00 | M7: =AugustSales[עלויות משלוח]-AugustSales[עלויות משלוח2] -> ₪ 0.00 | N7: =AugustSales[רווח/הפסד על מכירה]+AugustSales[רווח/הפסד על משלוח] -> ₪ 0.00
C8: סה"כ | D8: ="נמכרו: "&SUBTOTAL(103,AugustSales[תיאור פריט]) -> נמכרו: 0 | E8: =SUBTOTAL(109,AugustSales[מחיר רכישה]) -> ₪ 0.00 | F8: =SUBTOTAL(109,AugustSales[מחיר מכירה]) -> ₪ 0.00 | G8: =SUBTOTAL(109,AugustSales[עמלת אינטרנט]) -> ₪ 0.00 | H8: =SUBTOTAL(109,AugustSales[עמלות PayPal]) -> ₪ 0.00 | I8: =SUBTOTAL(109,AugustSales[עמלות כרטיס אשראי]) -> ₪ 0.00 | J8: =SUBTOTAL(109,AugustSales[עלויות משלוח]) -> ₪ 0.00 | K8: =SUBTOTAL(109,AugustSales[עלויות משלוח2]) -> ₪ 0.00 | L8: =SUBTOTAL(109,AugustSales[רווח/הפסד על מכירה]) -> ₪ 0.00 | M8: =SUBTOTAL(109,AugustSales[רווח/הפסד על משלוח]) -> ₪ 0.00 | N8: =SUBTOTAL(109,AugustSales[סה"כ רווח/הפסד]) -> ₪ 0.00
A9: מגמת רווח/הפסד

Sheet ספטמבר
A1: ספטמבר
A2: מכירות באינטרנט | C2: מזהה מכירה | D2: תיאור פריט | E2: מחיר רכישה | F2: מחיר מכירה | G2: עמלת אינטרנט | H2: עמלות PayPal | I2: עמלות כרטיס אשראי | J2: עלויות משלוח | K2: עלויות משלוח2 | L2: רווח/הפסד על מכירה | M2: רווח/הפסד על משלוח | N2: סה"כ רווח/הפסד
A3: שנה | M3: =SeptemberSales[עלויות משלוח]-SeptemberSales[עלויות משלוח2] -> ₪ 0.00 | N3: =SeptemberSales[רווח/הפסד על מכירה]+SeptemberSales[רווח/הפסד על משלוח] -> ₪ 0.00
A4: =SalesYear -> 2012 | M4: =SeptemberSales[עלויות משלוח]-SeptemberSales[עלויות משלוח2] -> ₪ 0.00 | N4: =SeptemberSales[רווח/הפסד על מכירה]+SeptemberSales[רווח/הפסד על משלוח] -> ₪ 0.00
M5: =SeptemberSales[עלויות משלוח]-SeptemberSales[עלויות משלוח2] -> ₪ 0.00 | N5: =SeptemberSales[רווח/הפסד על מכירה]+SeptemberSales[רווח/הפסד על משלוח] -> ₪ 0.00
A6: סה"כ רווח/הפסד | M6: =SeptemberSales[עלויות משלוח]-SeptemberSales[עלויות משלוח2] -> ₪ 0.00 | N6: =SeptemberSales[רווח/הפסד על מכירה]+SeptemberSales[רווח/הפסד על משלוח] -> ₪ 0.00
A7: =SeptemberSales[[#Totals],[סה"כ רווח/הפסד]] -> ₪0.00 | M7: =SeptemberSales[עלויות משלוח]-SeptemberSales[עלויות משלוח2] -> ₪ 0.00 | N7: =SeptemberSales[רווח/הפסד על מכירה]+SeptemberSales[רווח/הפסד על משלוח] -> ₪ 0.00
C8: סה"כ | D8: ="נמכרו: "&SUBTOTAL(103,SeptemberSales[תיאור פריט]) -> נמכרו: 0 | E8: =SUBTOTAL(109,SeptemberSales[מחיר רכישה]) -> ₪ 0.00 | F8: =SUBTOTAL(109,SeptemberSales[מחיר מכירה]) -> ₪ 0.00 | G8: =SUBTOTAL(109,SeptemberSales[עמלת אינטרנט]) -> ₪ 0.00 | H8: =SUBTOTAL(109,SeptemberSales[עמלות PayPal]) -> ₪ 0.00 | I8: =SUBTOTAL(109,SeptemberSales[עמלות כרטיס אשראי]) -> ₪ 0.00 | J8: =SUBTOTAL(109,SeptemberSales[עלויות משלוח]) -> ₪ 0.00 | K8: =SUBTOTAL(109,SeptemberSales[עלויות משלוח2]) -> ₪ 0.00 | L8: =SUBTOTAL(109,SeptemberSales[רווח/הפסד על מכירה]) -> ₪ 0.00 | M8: =SUBTOTAL(109,SeptemberSales[רווח/הפסד על משלוח]) -> ₪ 0.00 | N8: =SUBTOTAL(109,SeptemberSales[סה"כ רווח/הפסד]) -> ₪ 0.00
A9: מגמת רווח/הפסד

Sheet אוקטובר
A1: אוקטובר
A2: מכירות באינטרנט | C2: מזהה מכירה | D2: תיאור פריט | E2: מחיר רכישה | F2: מחיר מכירה | G2: עמלת אינטרנט | H2: עמלות PayPal | I2: עמלות כרטיס אשראי | J2: עלויות משלוח | K2: עלויות משלוח2 | L2: רווח/הפסד על מכירה | M2: רווח/הפסד על משלוח | N2: סה"כ רווח/הפסד
A3: שנה | M3: =OctoberSales[עלויות משלוח]-OctoberSales[עלויות משלוח2] -> ₪ 0.00 | N3: =OctoberSales[רווח/הפסד על מכירה]+OctoberSales[רווח/הפסד על משלוח] -> ₪ 0.00
A4: =SalesYear -> 2012 | M4: =OctoberSales[עלויות משלוח]-OctoberSales[עלויות משלוח2] -> ₪ 0.00 | N4: =OctoberSales[רווח/הפסד על מכירה]+OctoberSales[רווח/הפסד על משלוח] -> ₪ 0.00
M5: =OctoberSales[עלויות משלוח]-OctoberSales[עלויות משלוח2] -> ₪ 0.00 | N5: =OctoberSales[רווח/הפסד על מכירה]+OctoberSales[רווח/הפסד על משלוח] -> ₪ 0.00
A6: סה"כ רווח/הפסד | M6: =OctoberSales[עלויות משלוח]-OctoberSales[עלויות משלוח2] -> ₪ 0.00 | N6: =OctoberSales[רווח/הפסד על מכירה]+OctoberSales[רווח/הפסד על משלוח] -> ₪ 0.00
A7: =OctoberSales[[#Totals],[סה"כ רווח/הפסד]] -> ₪0.00 | M7: =OctoberSales[עלויות משלוח]-OctoberSales[עלויות משלוח2] -> ₪ 0.00 | N7: =OctoberSales[רווח/הפסד על מכירה]+OctoberSales[רווח/הפסד על משלוח] -> ₪ 0.00
C8: סה"כ | D8: ="נמכרו: "&SUBTOTAL(103,OctoberSales[תיאור פריט]) -> נמכרו: 0 | E8: =SUBTOTAL(109,OctoberSales[מחיר רכישה]) -> ₪ 0.00 | F8: =SUBTOTAL(109,OctoberSales[מחיר מכירה]) -> ₪ 0.00 | G8: =SUBTOTAL(109,OctoberSales[עמלת אינטרנט]) -> ₪ 0.00 | H8: =SUBTOTAL(109,OctoberSales[עמלות PayPal]) -> ₪ 0.00 | I8: =SUBTOTAL(109,OctoberSales[עמלות כרטיס אשראי]) -> ₪ 0.00 | J8: =SUBTOTAL(109,OctoberSales[עלויות משלוח]) -> ₪ 0.00 | K8: =SUBTOTAL(109,OctoberSales[עלויות משלוח2]) -> ₪ 0.00 | L8: =SUBTOTAL(109,OctoberSales[רווח/הפסד על מכירה]) -> ₪ 0.00 | M8: =SUBTOTAL(109,OctoberSales[רווח/הפסד על משלוח]) -> ₪ 0.00 | N8: =SUBTOTAL(109,OctoberSales[סה"כ רווח/הפסד]) -> ₪ 0.00
A9: מגמת רווח/הפסד

Sheet נובמבר
A1: נובמבר
A2: מכירות באינטרנט | C2: מזהה מכירה | D2: תיאור פריט | E2: מחיר רכישה | F2: מחיר מכירה | G2: עמלת אינטרנט | H2: עמלות PayPal | I2: עמלות כרטיס אשראי | J2: עלויות משלוח | K2: עלויות משלוח2 | L2: רווח/הפסד על מכירה | M2: רווח/הפסד על משלוח | N2: סה"כ רווח/הפסד
A3: שנה | M3: =NovemberSales[עלויות משלוח]-NovemberSales[עלויות משלוח2] -> ₪ 0.00 | N3: =NovemberSales[רווח/הפסד על מכירה]+NovemberSales[רווח/הפסד על משלוח] -> ₪ 0.00
A4: =SalesYear -> 2012 | M4: =NovemberSales[עלויות משלוח]-NovemberSales[עלויות משלוח2] -> ₪ 0.00 | N4: =NovemberSales[רווח/הפסד על מכירה]+NovemberSales[רווח/הפסד על משלוח] -> ₪ 0.00
M5: =NovemberSales[עלויות משלוח]-NovemberSales[עלויות משלוח2] -> ₪ 0.00 | N5: =NovemberSales[רווח/הפסד על מכירה]+NovemberSales[רווח/הפסד על משלוח] -> ₪ 0.00
A6: סה"כ רווח/הפסד | M6: =NovemberSales[עלויות משלוח]-NovemberSales[עלויות משלוח2] -> ₪ 0.00 | N6: =NovemberSales[רווח/הפסד על מכירה]+NovemberSales[רווח/הפסד על משלוח] -> ₪ 0.00
A7: =NovemberSales[[#Totals],[סה"כ רווח/הפסד]] -> ₪0.00 | M7: =NovemberSales[עלויות משלוח]-NovemberSales[עלויות משלוח2] -> ₪ 0.00 | N7: =NovemberSales[רווח/הפסד על מכירה]+NovemberSales[רווח/הפסד על משלוח] -> ₪ 0.00
C8: סה"כ | D8: ="נמכרו: "&SUBTOTAL(103,NovemberSales[תיאור פריט]) -> נמכרו: 0 | E8: =SUBTOTAL(109,NovemberSales[מחיר רכישה]) -> ₪ 0.00 | F8: =SUBTOTAL(109,NovemberSales[מחיר מכירה]) -> ₪ 0.00 | G8: =SUBTOTAL(109,NovemberSales[עמלת אינטרנט]) -> ₪ 0.00 | H8: =SUBTOTAL(109,NovemberSales[עמלות PayPal]) -> ₪ 0.00 | I8: =SUBTOTAL(109,NovemberSales[עמלות כרטיס אשראי]) -> ₪ 0.00 | J8: =SUBTOTAL(109,NovemberSales[עלויות משלוח]) -> ₪ 0.00 | K8: =SUBTOTAL(109,NovemberSales[עלויות משלוח2]) -> ₪ 0.00 | L8: =SUBTOTAL(109,NovemberSales[רווח/הפסד על מכירה]) -> ₪ 0.00 | M8: =SUBTOTAL(109,NovemberSales[רווח/הפסד על משלוח]) -> ₪ 0.00 | N8: =SUBTOTAL(109,NovemberSales[סה"כ רווח/הפסד]) -> ₪ 0.00
A9: מגמת רווח/הפסד

Sheet סיכום מתחילת השנה עד היום
A1: מתחילת השנה עד היום
A2: סיכום | C2: רווח/הפסד | H2: רווח/הפסד מתחילת השנה עד היום
A3: שנה | H3: חודש | I3: רווח/הפסד על מכירות | J3: רווח/הפסד על משלוח | K3: סה"כ רווח/הפסד
A4: =SalesYear -> 2012 | H4: ינואר | I4: =JanuarySales[[#Totals],[רווח/הפסד על מכירה]] -> ₪ 79.50 | J4: =JanuarySales[[#Totals],[רווח/הפסד על משלוח]] -> ₪ 9.50 | K4: =IF(AND(YTDSummary[[#This Row],[רווח/הפסד על מכירות]]<>"",YTDSummary[[#This Row],[רווח/הפסד על משלוח]]<>""),YTDSummary[[#This Row],[רווח/הפסד על מכירות]]+YTDSummary[[#This Row],[רווח/הפסד על משלוח]],"") -> ₪ 89.00
H5: פברואר | I5: =FebruarySales[[#Totals],[רווח/הפסד על מכירה]] -> ₪ 212.30 | J5: =FebruarySales[[#Totals],[רווח/הפסד על משלוח]] -> ₪ 12.30 | K5: =IF(AND(YTDSummary[[#This Row],[רווח/הפסד על מכירות]]<>"",YTDSummary[[#This Row],[רווח/הפסד על משלוח]]<>""),YTDSummary[[#This Row],[רווח/הפסד על מכירות]]+YTDSummary[[#This Row],[רווח/הפסד על משלוח]],"") -> ₪ 224.60
A6: מגמת מכירות חודשית: | H6: מרץ | I6: =MarchSales[[#Totals],[רווח/הפסד על מכירה]] -> ₪ 0.00 | J6: =MarchSales[[#Totals],[רווח/הפסד על משלוח]] -> ₪ 0.00 | K6: =IF(AND(YTDSummary[[#This Row],[רווח/הפסד על מכירות]]<>"",YTDSummary[[#This Row],[רווח/הפסד על משלוח]]<>""),YTDSummary[[#This Row],[רווח/הפסד על מכירות]]+YTDSummary[[#This Row],[רווח/הפסד על משלוח]],"") -> ₪ 0.00
H7: אפריל | I7: =AprilSales[[#Totals],[רווח/הפסד על מכירה]] -> ₪ 0.00 | J7: =AprilSales[[#Totals],[רווח/הפסד על משלוח]] -> ₪ 0.00 | K7: =IF(AND(YTDSummary[[#This Row],[רווח/הפסד על מכירות]]<>"",YTDSummary[[#This Row],[רווח/הפסד על משלוח]]<>""),YTDSummary[[#This Row],[רווח/הפסד על מכירות]]+YTDSummary[[#This Row],[רווח/הפסד על משלוח]],"") -> ₪ 0.00
H8: מאי | I8: =MaySales[[#Totals],[רווח/הפסד על מכירה]] -> ₪ 0.00 | J8: =MaySales[[#Totals],[רווח/הפסד על משלוח]] -> ₪ 0.00 | K8: =IF(AND(YTDSummary[[#This Row],[רווח/הפסד על מכירות]]<>"",YTDSummary[[#This Row],[רווח/הפסד על משלוח]]<>""),YTDSummary[[#This Row],[רווח/הפסד על מכירות]]+YTDSummary[[#This Row],[רווח/הפסד על משלוח]],"") -> ₪ 0.00
H9: יוני | I9: =JuneSales[[#Totals],[רווח/הפסד על מכירה]] -> ₪ 0.00 | J9: =JuneSales[[#Totals],[רווח/הפסד על משלוח]] -> ₪ 0.00 | K9: =IF(AND(YTDSummary[[#This Row],[רווח/הפסד על מכירות]]<>"",YTDSummary[[#This Row],[רווח/הפסד על משלוח]]<>""),YTDSummary[[#This Row],[רווח/הפסד על מכירות]]+YTDSummary[[#This Row],[רווח/הפסד על משלוח]],"") -> ₪ 0.00
H10: יולי | I10: =JulySales[[#Totals],[רווח/הפסד על מכירה]] -> ₪ 0.00 | J10: =JulySales[[#Totals],[רווח/הפסד על משלוח]] -> ₪ 0.00 | K10: =IF(AND(YTDSummary[[#This Row],[רווח/הפסד על מכירות]]<>"",YTDSummary[[#This Row],[רווח/הפסד על משלוח]]<>""),YTDSummary[[#This Row],[רווח/הפסד על מכירות]]+YTDSummary[[#This Row],[רווח/הפסד על משלוח]],"") -> ₪ 0.00
H11: אוגוסט | I11: =AugustSales[[#Totals],[רווח/הפסד על מכירה]] -> ₪ 0.00 | J11: =AugustSales[[#Totals],[רווח/הפסד על משלוח]] -> ₪ 0.00 | K11: =IF(AND(YTDSummary[[#This Row],[רווח/הפסד על מכירות]]<>"",YTDSummary[[#This Row],[רווח/הפסד על משלוח]]<>""),YTDSummary[[#This Row],[רווח/הפסד על מכירות]]+YTDSummary[[#This Row],[רווח/הפסד על משלוח]],"") -> ₪ 0.00
H12: ספטמבר | I12: =SeptemberSales[[#Totals],[רווח/הפסד על מכירה]] -> ₪ 0.00 | J12: =SeptemberSales[[#Totals],[רווח/הפסד על משלוח]] -> ₪ 0.00 | K12: =IF(AND(YTDSummary[[#This Row],[רווח/הפסד על מכירות]]<>"",YTDSummary[[#This Row],[רווח/הפסד על משלוח]]<>""),YTDSummary[[#This Row],[רווח/הפסד על מכירות]]+YTDSummary[[#This Row],[רווח/הפסד על משלוח]],"") -> ₪ 0.00
H13: אוקטובר | I13: =OctoberSales[[#Totals],[רווח/הפסד על מכירה]] -> ₪ 0.00 | J13: =OctoberSales[[#Totals],[רווח/הפסד על משלוח]] -> ₪ 0.00 | K13: =IF(AND(YTDSummary[[#This Row],[רווח/הפסד על מכירות]]<>"",YTDSummary[[#This Row],[רווח/הפסד על משלוח]]<>""),YTDSummary[[#This Row],[רווח/הפסד על מכירות]]+YTDSummary[[#This Row],[רווח/הפסד על משלוח]],"") -> ₪ 0.00
H14: נובמבר | I14: =NovemberSales[[#Totals],[רווח/הפסד על מכירה]] -> ₪ 0.00 | J14: =NovemberSales[[#Totals],[רווח/הפסד על משלוח]] -> ₪ 0.00 | K14: =IF(AND(YTDSummary[[#This Row],[רווח/הפסד על מכירות]]<>"",YTDSummary[[#This Row],[רווח/הפסד על משלוח]]<>""),YTDSummary[[#This Row],[רווח/הפסד על מכירות]]+YTDSummary[[#This Row],[רווח/הפסד על משלוח]],"") -> ₪ 0.00
H15: דצמבר | I15: =DecemberSales[[#Totals],[רווח/הפסד על מכירה]] -> ₪ 0.00 | J15: =DecemberSales[[#Totals],[רווח/הפסד על משלוח]] -> ₪ 0.00 | K15: =IF(AND(YTDSummary[[#This Row],[רווח/הפסד על מכירות]]<>"",YTDSummary[[#This Row],[רווח/הפסד על משלוח]]<>""),YTDSummary[[#This Row],[רווח/הפסד על מכירות]]+YTDSummary[[#This Row],[רווח/הפסד על משלוח]],"") -> ₪ 0.00
H16: סכומים | I16: =SUBTOTAL(109,YTDSummary[רווח/הפסד על מכירות]) -> ₪ 291.80 | J16: =SUBTOTAL(109,YTDSummary[רווח/הפסד על משלוח]) -> ₪ 21.80 | K16: =SUBTOTAL(109,YTDSummary[סה"כ רווח/הפסד]) -> ₪ 313.60

Sheet דצמבר
A1: דצמבר
A2: מכירות באינטרנט | C2: מזהה מכירה | D2: תיאור פריט | E2: מחיר רכישה | F2: מחיר מכירה | G2: עמלת אינטרנט | H2: עמלות PayPal | I2: עמלות כרטיס אשראי | J2: עלויות משלוח | K2: עלויות משלוח2 | L2: רווח/הפסד על מכירה | M2: רווח/הפסד על משלוח | N2: סה"כ רווח/הפסד
A3: שנה | M3: =DecemberSales[עלויות משלוח]-DecemberSales[עלויות משלוח2] -> ₪ 0.00 | N3: =DecemberSales[רווח/הפסד על מכירה]+DecemberSales[רווח/הפסד על משלוח] -> ₪ 0.00
A4: =SalesYear -> 2012 | M4: =DecemberSales[עלויות משלוח]-DecemberSales[עלויות משלוח2] -> ₪ 0.00 | N4: =DecemberSales[רווח/הפסד על מכירה]+DecemberSales[רווח/הפסד על משלוח] -> ₪ 0.00
M5: =DecemberSales[עלויות משלוח]-DecemberSales[עלויות משלוח2] -> ₪ 0.00 | N5: =DecemberSales[רווח/הפסד על מכירה]+DecemberSales[רווח/הפסד על משלוח] -> ₪ 0.00
A6: סה"כ רווח/הפסד | M6: =DecemberSales[עלויות משלוח]-DecemberSales[עלויות משלוח2] -> ₪ 0.00 | N6: =DecemberSales[רווח/הפסד על מכירה]+DecemberSales[רווח/הפסד על משלוח] -> ₪ 0.00
A7: =DecemberSales[[#Totals],[סה"כ רווח/הפסד]] -> ₪0.00 | M7: =DecemberSales[עלויות משלוח]-DecemberSales[עלויות משלוח2] -> ₪ 0.00 | N7: =DecemberSales[רווח/הפסד על מכירה]+DecemberSales[רווח/הפסד על משלוח] -> ₪ 0.00
C8: סה"כ | D8: ="נמכרו: "&SUBTOTAL(103,DecemberSales[תיאור פריט]) -> נמכרו: 0 | E8: =SUBTOTAL(109,DecemberSales[מחיר רכישה]) -> ₪ 0.00 | F8: =SUBTOTAL(109,DecemberSales[מחיר מכירה]) -> ₪ 0.00 | G8: =SUBTOTAL(109,DecemberSales[עמלת אינטרנט]) -> ₪ 0.00 | H8: =SUBTOTAL(109,DecemberSales[עמלות PayPal]) -> ₪ 0.00 | I8: =SUBTOTAL(109,DecemberSales[עמלות כרטיס אשראי]) -> ₪ 0.00 | J8: =SUBTOTAL(109,DecemberSales[עלויות משלוח]) -> ₪ 0.00 | K8: =SUBTOTAL(109,DecemberSales[עלויות משלוח2]) -> ₪ 0.00 | L8: =SUBTOTAL(109,DecemberSales[רווח/הפסד על מכירה]) -> ₪ 0.00 | M8: =SUBTOTAL(109,DecemberSales[רווח/הפסד על משלוח]) -> ₪ 0.00 | N8: =SUBTOTAL(109,DecemberSales[סה"כ רווח/הפסד]) -> ₪ 0.00
A9: מגמת רווח/הפסד
